Workbook

Sheet M&A
A1: Avoided Cost Data Set | C1: Options
A2: LEI High | C2: LEI High | D2: AESC 2016
A4: Net or Gross
A5: Net | C5: Net | D5: Gross
A7: Include Incentives to Freeriders as Cost
A8: Yes | C8: Yes | D8: No

Sheet Measures
BJ1: AG<row> | BK1: AH<row>
F2: Formula per Efficiency Maine TRM | AC2: Factors per Efficiency Maine TRM | AR2: Parameters (user inputs through defined lists with values defined by TRM) | BD2: Calculated Savings per TRM formulas | BS2: Calculated Benefits and Costs (adjusted gross) | CG2: Measure Screening: >1 is cost effective | CI2: Incentive - Program defined | CJ2: NTG
A3: Program Name | B3: Measure Name | C3: Measure Code | D3: Pricing Effective Date | E3: Pricing Effective End Date | F3: Measure Cost Method | G3: Measure Cost | H3: Measure Cost Cap | I3: Incentive Method | J3: Incentive | K3: Incentive Cap | L3: Savings Effective Date | M3: Savings Effective End Date | N3: Savings Method | O3: kWh | P3: kWh Min | Q3: kWh Max | R3: kW | S3: kW Min | T3: kW Max | U3: Winter kW | V3: Summer kW | W3: Therms | X3: Propane | Y3: Heating Oil | Z3: Kerosene | AA3: Wood | AB3: Water | AC3: Factor Effective Date | AD3: Factor Effective End Date | AF3: Useful Life | AG3: Winter CF | AH3: Summer CF | AI3: EPF Winter Peak | AJ3: EPF Winter Off Peak | AK3: EPF Summer Peak | AL3: EPF Summer Off Peak | AM3: ISR | AN3: RRe | AO3: RRd | AP3: FR | AQ3: SO | AR3: Name | AS3: Value | AT3: Name | AU3: Value | AV3: Name | AW3: Value | AX3: Name | AY3: Value | AZ3: Name | BA3: Value | BB3: Name | BC3: Value | BD3: kWh | BG3: kW | BJ3: Winter kW | BK3: Summer kW | BL3: Therms | BM3: Propane | BN3: Heating Oil | BO3: Kerosene | BP3: Wood | BQ3: Water | BR3: Customer Type (Res/Com) | BS3: Electric Energy Benefit | BT3: Electric Demand Benefit | BU3: NG Benefit | BV3: Oil Benefit | BW3: Kerosene Benefit | BX3: Propane Benefit | BY3: Wood Benefit | BZ3: Water Benefit | CA3: Total Energy & Water Benefits | CB3: Total Fuel Costs | CC3: Non-energy Benefits | CD3: Measure Cost | CE3: Discounted Future O&M (decreased future O&M entered as a negative value) | CF3: Discounted future replacement costs (decreased future replacement cost entered as a negative value) | CG3: Benefit / Cost Ratio | CH3: Include (1 - yes, 0 - no) | CI3: Incentive Per Unit | CJ3: NTG = 1 if Gross, NTG = 1-FR+SO if Net
B4: Reference Calcs | BD4: =O4 -> 0 | BG4: =R4 -> 0 | BJ4: =U4 -> 0 | BK4: 0 | BL4: 0 | BM4: 0 | BN4: 0 | BO4: 0 | BP4: 0 | BQ4: 0 | BR4: Res | BS4: =Benefits(BD4,BJ4,BK4,BL4,BM4,BN4,BO4,BP4,BQ4,AF4,AI4,AJ4,AK4,AL4,AM4,AN4,AO4,AP4,AQ4,BR4) -> 0 | BT4: 0 | BU4: 0 | BV4: 0 | BW4: 0 | BX4: 0 | BY4: 0 | BZ4: 0 | CA4: =(--(BS4>0))*BS4+(--(BT4>0))*BT4+(--(BU4>0))*BU4+(--(BV4>0))*BV4+(--(BW4>0))*BW4+(--(BX4>0))*BX4+(--(BY4>0))*BY4+(--(BZ4>0))*BZ4 -> 0 | CB4: =(--(BS4<0))*-BS4+(--(BT4<0))*-BT4+(--(BU4<0))*-BU4+(--(BV4<0))*-BV4+(--(BW4<0))*-BW4+(--(BX4<0))*-BX4+(--(BY4<0))*-BY4+(--(BZ4<0))*-BZ4 -> 0 | CD4: 0 | CG4: =((--(BS4>0))*BS4+(--(BT4>0))*BT4+(--(BU4>0))*BU4+(--(BV4>0))*BV4+(--(BW4>0))*BW4+(--(BX4>0))*BX4+(--(BY4>0))*BY4+(--(BZ4>0))*BZ4+CC4)*CJ4/(((--(BS4<0))*-BS4+(--(BT4<0))*-BT4+(--(BU4<0))*-BU4+(--(BV4<0))*-BV4+(--(BW4<0))*-BW4+(--(BX4<0))*-BX4+(--(BY4<0))*-BY4+(--(BZ4<0))*-BZ4+CD4+CE4+CF4)*CJ4+IF(FRIncentives="Yes",CI4*(1-CJ4),0)) ->  | CJ4: =IF(NetOrGross="Net",(1-AP4+AQ4),1) -> 1
A5: C&I Lighting (Interior & exterior) Solutions | B5: S21 Recessed/Surface/Pendant-Mounted LED Downlight | C5: S21 | D5: 2017-07-01 | E5: 2018-06-30 | F5: Calculated | G5: if(Max(0.0,(({Space Type}*{Area Sq. Ft}/1000)-({Measure:Quantity}*{Installed Fixture Description}/1000))*{Weekly Hrs of Operation}*{Weeks Per Year})=0,0,{Measure:Quantity}*15.00)) | H5: 0 | I5: Calculated | J5: if(Max(0.0,(({Space Type}*{Area Sq. Ft}/1000)-({Measure:Quantity}*{Installed Fixture Description}/1000))*{Weekly Hrs of Operation}*{Weeks Per Year})=0,0,{Measure:Quantity}*10.00)) | K5: 0 | L5: 2017-07-01 | M5: 2018-06-30 | N5: Calculated | O5: Max(0.0,(({Space Type}*{Area Sq. Ft}/1000)-({Measure:Quantity}*{Installed Fixture Description}/1000))*{Weekly Hrs of Operation}*{Weeks Per Year}))*1.144 | R5: Max(0.0,(({Space Type}*{Area Sq. Ft}/1000)-({Measure:Quantity}*{Installed Fixture Description}/1000))))*1.06 | U5: Max(0.0,(({Space Type}*{Area Sq. Ft}/1000)-({Measure:Quantity}*{Installed Fixture Description}/1000))*{Factor:WinterCF})) | V5: if({Measure:Quantity}=0,0,Max(0.0,(({Space Type}*{Area Sq. Ft}/1000)-({Measure:Quantity}*{Installed Fixture Description}/1000))*{Factor:SummerCF}))*1.06 | W5: if({Measure:Quantity}=0,0,-1*Max(0.0,(({Space Type}*{Area Sq. Ft}/1000)-({Measure:Quantity}*{Installed Fixture Description}/1000))*{Weekly Hrs of Operation}*{Weeks Per Year}))*0.00159*0.10*10 | X5: if({Measure:Quantity}=0,0,-1*Max(0.0,(({Space Type}*{Area Sq. Ft}/1000)-({Measure:Quantity}*{Installed Fixture Description}/1000))*{Weekly Hrs of Operation}*{Weeks Per Year}))*0.00159*0.07 | Y5: if({Measure:Quantity}=0,0,-1*Max(0.0,(({Space Type}*{Area Sq. Ft}/1000)-({Measure:Quantity}*{Installed Fixture Description}/1000))*{Weekly Hrs of Operation}*{Weeks Per Year}))*0.00159*0.76 | Z5: if({Measure:Quantity}=0,0,-1*Max(0.0,(({Space Type}*{Area Sq. Ft}/1000)-({Measure:Quantity}*{Installed Fixture Description}/1000))*{Weekly Hrs of Operation}*{Weeks Per Year}))*0.00159*0.07 | AA5: 0 | AC5: 2016-10-01 | AD5: 2018-06-30 | AF5: 15 | AG5: 0.63 | AH5: 0.76 | AI5: 0.5 | AJ5: 0.19 | AK5: 0.23 | AL5: 0.09 | AM5: 1 | AN5: 0.99 | AO5: 1.01 | AP5: 0.26 | AQ5: 0.016 | AR5: Installed Fixture Description | AS5: 12 | AV5: Space Type | AW5: 0.5 | AX5: Weekly Hrs of Operation | AY5: 40 | AZ5: Weeks per Year | BA5: 52 | BB5: Area Sq. Ft | BC5: 48 | BD5: =MAX(0,((AW5*BC5/1000)-(1*AS5/1000))*AY5*BA5)*1.144 -> 28.55424 | BG5: =MAX(0,((AW5*BC5/1000)-(1*AS5/1000)))*1.06 -> 0.01272 | BJ5: =MAX(0,((AW5*BC5/1000)-(1*AS5/1000))*AG5) -> 0.00756 | BK5: =IF(1=0,0,MAX(0,((AW5*BC5/1000)-(1*AS5/1000))*AH5))*1.06 -> 0.0096672 | BL5: =IF(1=0,0,-1*MAX(0,((AW5*BC5/1000)-(1*AS5/1000))*AY5*BA5))*0.00159*0.1*10 -> -0.0396864 | BM5: =IF(1=0,0,-1*MAX(0,((AW5*BC5/1000)-(1*AS5/1000))*AY5*BA5))*0.00159*0.07 -> -0.002778048 | BN5: =IF(1=0,0,-1*MAX(0,((AW5*BC5/1000)-(1*AS5/1000))*AY5*BA5))*0.00159*0.76 -> -0.030161664 | BO5: =IF(1=0,0,-1*MAX(0,((AW5*BC5/1000)-(1*AS5/1000))*AY5*BA5))*0.00159*0.07 -> -0.002778048 | BR5: Com | BS5: =Benefits(BD5,BJ5,BK5,BL5,BM5,BN5,BO5,BP5,BQ5,AF5,AI5,AJ5,AK5,AL5,AM5,AN5,AO5,AP5,AQ5,BR5) -> 13.39220946 | BT5: 21.68450596 | BU5: -0.2562320916 | BV5: -3.95254499 | BW5: -0.5266514575 | BX5: -0.4488935034 | BY5: 0 | BZ5: 0 | CA5: =(--(BS5>0))*BS5+(--(BT5>0))*BT5+(--(BU5>0))*BU5+(--(BV5>0))*BV5+(--(BW5>0))*BW5+(--(BX5>0))*BX5+(--(BY5>0))*BY5+(--(BZ5>0))*BZ5 -> 35.07671542 | CB5: =(--(BS5<0))*-BS5+(--(BT5<0))*-BT5+(--(BU5<0))*-BU5+(--(BV5<0))*-BV5+(--(BW5<0))*-BW5+(--(BX5<0))*-BX5+(--(BY5<0))*-BY5+(--(BZ5<0))*-BZ5 -> 5.184322043 | CD5: 15 | CG5: =((--(BS5>0))*BS5+(--(BT5>0))*BT5+(--(BU5>0))*BU5+(--(BV5>0))*BV5+(--(BW5>0))*BW5+(--(BX5>0))*BX5+(--(BY5>0))*BY5+(--(BZ5>0))*BZ5+CC5)*CJ5/(((--(BS5<0))*-BS5+(--(BT5<0))*-BT5+(--(BU5<0))*-BU5+(--(BV5<0))*-BV5+(--(BW5<0))*-BW5+(--(BX5<0))*-BX5+(--(BY5<0))*-BY5+(--(BZ5<0))*-BZ5+CD5+CE5+CF5)*CJ5+IF(FRIncentives="Yes",CI5*(1-CJ5),0)) -> 1.498247148 | CI5: 10 | CJ5: =IF(NetOrGross="Net",(1-AP5+AQ5),1) -> 0.756
A6: C&I Lighting (Interior & exterior) Solutions | B6: S52 LED Retrofit Kits for Interior Luminaires | C6: S52. | D6: 2017-07-01 | E6: 2018-06-30 | F6: Calculated | G6: {Measure:Quantity}*if({Installed Fixture Description}=26,152,if({Installed Fixture Description}=49,152,if({Installed Fixture Description}=28,157,if({Installed Fixture Description}=46,161,if({Installed Fixture Description}=36,145,if({Installed Fixture Description}=53,150,if({Installed Fixture Description}=26.001,117,if({Installed Fixture Description}=49.001,152,if({Installed Fixture Description}=28.001,116,if({Installed Fixture Description}=46.001,144,if({Installed Fixture Description}=36.001,100,174))))))))))) | H6: 0 | I6: Calculated | J6: {Measure:Quantity}*if({Installed Fixture Description}=26,65,if({Installed Fixture Description}=49,65,if({Installed Fixture Description}=28,65,if({Installed Fixture Description}=46,65,if({Installed Fixture Description}=36,65,if({Installed Fixture Description}=53,65,if({Installed Fixture Description}=26.0001,50,if({Installed Fixture Description}=49.0001,50,if({Installed Fixture Description}=28.0001,50,if({Installed Fixture Description}=46.0001,50,if({Installed Fixture Description}=36.0001,50,50))))))))))) | K6: 0 | L6: 2017-07-01 | M6: 2018-06-30 | N6: Calculated | O6: if({Measure:Quantity}=0,0,Max(0.0,(({Existing Quantity}*{Existing Fixture Description}/1000)-({Measure:Quantity}*{Installed Fixture Description}/1000))*{Weekly Hrs of Operation}*{Weeks Per Year}))*1.144 | R6: Max(0.0,(({Existing Quantity}*{Existing Fixture Description}/1000)-({Measure:Quantity}*{Installed Fixture Description}/1000))))*1.06 | U6: Max(0.0,(({Existing Quantity}*{Existing Fixture Description}/1000)-({Measure:Quantity}*{Installed Fixture Description}/1000))*{Factor:WinterCF})) | V6: Max(0.0,(({Existing Quantity}*{Existing Fixture Description}/1000)-({Measure:Quantity}*{Installed Fixture Description}/1000))*{Factor:SummerCF}))*1.06 | W6: if({Measure:Quantity}=0,0,-1.0*Max(0.0,(({Existing Quantity}*{Existing Fixture Description}/1000)-({Measure:Quantity}*{Installed Fixture Description}/1000))*{Weekly Hrs of Operation}*{Weeks Per Year}))*0.00159*10*0.10 | X6: if({Measure:Quantity}=0,0,-1.0*Max(0.0,(({Existing Quantity}*{Existing Fixture Description}/1000)-({Measure:Quantity}*{Installed Fixture Description}/1000))*{Weekly Hrs of Operation}*{Weeks Per Year}))*0.00159*0.07 | Y6: if({Measure:Quantity}=0,0,-1.0*Max(0.0,(({Existing Quantity}*{Existing Fixture Description}/1000)-({Measure:Quantity}*{Installed Fixture Description}/1000))*{Weekly Hrs of Operation}*{Weeks Per Year}))*0.00159*0.76 | Z6: if({Measure:Quantity}=0,0,-1.0*Max(0.0,(({Existing Quantity}*{Existing Fixture Description}/1000)-({Measure:Quantity}*{Installed Fixture Description}/1000))*{Weekly Hrs of Operation}*{Weeks Per Year}))*0.00159*0.07 | AA6: 0 | AC6: 2016-10-01 | AD6: 2018-06-30 | AF6: 13 | AG6: 0.63 | AH6: 0.76 | AI6: 0.5 | AJ6: 0.19 | AK6: 0.23 | AL6: 0.09 | AM6: 1 | AN6: 0.99 | AO6: 1.01 | AP6: 0.26 | AQ6: 0.016 | AR6: Installed Fixture Description | AS6: 22 | AT6: Existing Fixture Description | AU6: 80 | AV6: Existing Quantity | AW6: 1 | AX6: Weekly Hrs of Operation | AY6: 70 | AZ6: Weeks per Year | BA6: 52 | BD6: =IF(1=0,0,MAX(0,((AU6*AW6/1000)-(1*AS6/1000))*AY6*BA6))*1.144 -> 241.52128 | BG6: =MAX(0,((BC6*AS6/1000)-(1*AS6/1000)))*1.06 -> 0 | BJ6: =MAX(0,((AW6*AU6/1000)-(1*AS6/1000))*AG6) -> 0.03654 | BK6: =MAX(0,((AW6*AU6/1000)-(1*AS6/1000))*AH6)*1.06 -> 0.0467248 | BL6: =IF(1=0,0,-1*MAX(0,((AW6*AU6/1000)-(1*AS6/1000))*AY6*BA6))*0.00159*10*0.1 -> -0.3356808 | BM6: =IF(1=0,0,-1*MAX(0,((AW6*AU6/1000)-(1*AS6/1000))*AY6*BA6))*0.00159*0.07 -> -0.023497656 | BN6: =IF(1=0,0,-1*MAX(0,((AW6*AU6/1000)-(1*AS6/1000))*AY6*BA6))*0.00159*0.76 -> -0.255117408 | BO6: =IF(1=0,0,-1*MAX(0,((AW6*AU6/1000)-(1*AS6/1000))*AY6*BA6))*0.00159*0.07 -> -0.023497656 | BR6: Com | BS6: =Benefits(BD6,BJ6,BK6,BL6,BM6,BN6,BO6,BP6,BQ6,AF6,AI6,AJ6,AK6,AL6,AM6,AN6,AO6,AP6,AQ6,BR6) -> 102.4231178 | BT6: 94.10035435 | BU6: -1.971215071 | BV6: -30.11249551 | BW6: -4.029876489 | BX6: -3.450268273 | BY6: 0 | BZ6: 0 | CA6: 196.5234721 | CB6: 39.56385534 | CD6: =IF(AS6=26,152,IF(AS6=49,152,IF(AS6=28,157,IF(AS6=46,161,IF(AS6=36,145,IF(AS6=53,150,IF(AS6=26.001,117,IF(AS6=49.001,152,IF(AS6=28.001,116,IF(AS6=46.001,144,IF(AS6=36.001,100,174))))))))))) -> 174 | CG6: =((--(BS6>0))*BS6+(--(BT6>0))*BT6+(--(BU6>0))*BU6+(--(BV6>0))*BV6+(--(BW6>0))*BW6+(--(BX6>0))*BX6+(--(BY6>0))*BY6+(--(BZ6>0))*BZ6+CC6)*CJ6/(((--(BS6<0))*-BS6+(--(BT6<0))*-BT6+(--(BU6<0))*-BU6+(--(BV6<0))*-BV6+(--(BW6<0))*-BW6+(--(BX6<0))*-BX6+(--(BY6<0))*-BY6+(--(BZ6<0))*-BZ6+CD6+CE6+CF6)*CJ6+IF(FRIncentives="Yes",CI6*(1-CJ6),0)) -> 0.7501567194 | CI6: 150 | CJ6: =IF(NetOrGross="Net",(1-AP6+AQ6),1) -> 0.756

Sheet LEI High Avoided Costs Res
A1: EffectiveDate | B1: Year | C1: Electric+DripeSeasonalWinterOnPeak | D1: Electric+DripeSeasonalWinterOffPeak | E1: Electric+DripeSeasonalSummerOnPeak | F1: Electric+DripeSeasonalSummerOffPeak | G1: Capacity+T&D | H1: NaturalGasResidential | I1: HeatingOilResidential | J1: KeroseneResidential | K1: PropaneResidential | L1: WoodSeasoned | M1: WaterResidential | O1: DefaultDiscountRate | P1: DefaultGenerationMarkUp
A2: 2018-01-01 | B2: 1 | C2: 0.04270026969 | D2: 0.03878672761 | E2: 0.0361275963 | F2: 0.0301325963 | G2: 223.12 | H2: 6.07 | I2: 12.4 | J2: 20.29832665 | K2: 18.38299265 | L2: 18.74789006 | M2: 0.0057 | O2: 6.5 | P2: 8
A3: 2019-01-01 | B3: 2 | C3: 0.04206869486 | D3: 0.03868969486 | E3: 0.03759969486 | F3: 0.03105969486 | G3: 231.156 | H3: 7.17 | I3: 12.56 | J3: 20.72001206 | K3: 18.57444281 | L3: 19.13736609 | M3: 0.0058
A4: 2020-01-01 | B4: 3 | C4: 0.04301685139 | D4: 0.03920185139 | E4: 0.03963785139 | F4: 0.03124485139 | G4: 211.4041969 | H4: 7.38 | I4: 12.83 | J4: 21.12091597 | K4: 18.70303871 | L4: 19.50764796 | M4: 0.006
A5: 2021-01-01 | B5: 4 | C5: 0.04371128802 | D5: 0.04011428802 | E5: 0.04098628802 | F5: 0.03292028802 | G5: 196.010213 | H5: 7.58 | I5: 13.22 | J5: 21.52985198 | K5: 18.91701863 | L5: 19.88534842 | M5: 0.0061
A6: 2022-01-01 | B6: 5 | C6: 0.04584030787 | D6: 0.04169830787 | E6: 0.04278830787 | F6: 0.03406830787 | G6: 198.1374363 | H6: 7.75 | I6: 13.59 | J6: 21.95534579 | K6: 19.08611481 | L6: 20.27834196 | M6: 0.0062
A7: 2023-01-01 | B7: 6 | C7: 0.046339388 | D7: 0.042415388 | E7: 0.045140388 | F7: 0.035548388 | G7: 209.9270579 | H7: 7.9 | I7: 14.06 | J7: 22.34212363 | K7: 19.21185724 | L7: 20.63557675 | M7: 0.0063
A8: 2024-01-01 | B8: 7 | C8: 0.046012388 | D8: 0.042415388 | E8: 0.043505388 | F8: 0.035875388 | G8: 230.0578709 | H8: 7.79 | I8: 14.39 | J8: 22.728751 | K8: 19.36509382 | L8: 20.99267256 | M8: 0.0064
A9: 2025-01-01 | B9: 8 | C9: 0.047102388 | D9: 0.042742388 | E9: 0.046230388 | F9: 0.036420388 | G9: 253.4664633 | H9: 7.98 | I9: 14.82 | J9: 23.08600754 | K9: 19.54914941 | L9: 21.32264096 | M9: 0.0065
A10: 2026-01-01 | B10: 9 | C10: 0.046775388 | D10: 0.042415388 | E10: 0.047756388 | F10: 0.036747388 | G10: 273.5648243 | H10: 7.94 | I10: 15.23 | J10: 23.35222117 | K10: 19.70174594 | L10: 21.56852053 | M10: 0.0067
A11: 2027-01-01 | B11: 10 | C11: 0.046884388 | D11: 0.042742388 | E11: 0.045031388 | F11: 0.037074388 | G11: 275.0169432 | H11: 7.87 | I11: 15.73 | J11: 23.73001846 | K11: 19.85467511 | L11: 21.91746072 | M11: 0.0068
A12: 2028-01-01 | B12: 11 | C12: 0.046012388 | D12: 0.042415388 | E12: 0.046012388 | F12: 0.037183388 | G12: 278.45081 | H12: 7.82 | I12: 16.2 | J12: 23.96784669 | K12: 19.97838385 | L12: 22.13712304 | M12: 0.0069
A13: 2029-01-01 | B13: 12 | C13: 0.047211388 | D13: 0.043941388 | E13: 0.046775388 | F13: 0.038055388 | G13: 280.9629895 | H13: 7.97 | I13: 16.66 | J13: 24.27266621 | K13: 20.1154621 | L13: 22.41865969 | M13: 0.007
A14: 2030-01-01 | B14: 13 | C14: 0.046993388 | D14: 0.041761388 | E14: 0.052443388 | F14: 0.037510388 | G14: 283.5003191 | H14: 7.98 | I14: 16.68 | J14: 24.51305343 | K14: 20.24925414 | L14: 22.64068554 | M14: 0.0072
A15: 2031-01-01 | B15: 14 | C15: 0.048628388 | D15: 0.043396388 | E15: 0.054841388 | F15: 0.039145388 | G15: 286.1959366 | H15: 7.99 | I15: 16.7 | J15: 24.83322072 | K15: 20.38753244 | L15: 22.93639766 | M15: 0.0073
A16: 2032-01-01 | B16: 15 | C16: 0.049391388 | D16: 0.044159388 | E16: 0.056258388 | F16: 0.040017388 | G16: 288.821258 | H16: 7.99 | I16: 16.72 | J16: 25.15756975 | K16: 20.52675501 | L16: 23.2359721 | M16: 0.0075
A17: 2033-01-01 | B17: 16 | C17: 0.050154388 | D17: 0.044922388 | E17: 0.057675388 | F17: 0.040998388 | G17: 291.6048358 | H17: 8 | I17: 16.74 | J17: 25.48615513 | K17: 20.66692831 | L17: 23.53945931 | M17: 0.0076
A18: 2034-01-01 | B18: 17 | C18: 0.050917388 | D18: 0.045794388 | E18: 0.059092388 | F18: 0.041870388 | G18: 294.3180945 | H18: 8.01 | I18: 16.76 | J18: 25.81903219 | K18: 20.80805882 | L18: 23.8469104 | M18: 0.0077
A19: 2035-01-01 | B19: 18 | C19: 0.051680388 | D19: 0.046557388 | E19: 0.060618388 | F19: 0.042742388 | G19: 297.1770265 | H19: 8 | I19: 16.78 | J19: 26.15625699 | K19: 20.95015309 | L19: 24.15837713 | M19: 0.0079
A20: 2036-01-01 | B20: 19 | C20: 0.052552388 | D20: 0.047429388 | E20: 0.062144388 | F20: 0.043723388 | G20: 299.9720712 | H20: 8.01 | I20: 16.8 | J20: 26.49788632 | K20: 21.0932177 | L20: 24.47391196 | M20: 0.008
A21: 2037-01-01 | B21: 20 | C21: 0.053315388 | D21: 0.048301388 | E21: 0.063670388 | F21: 0.044704388 | G21: 302.9199649 | H21: 8.02 | I21: 16.81 | J21: 26.8439777 | K21: 21.23725926 | L21: 24.79356802 | M21: 0.0082
A22: 2038-01-01 | B22: 21 | C22: 0.054187388 | D22: 0.049173388 | E22: 0.065305388 | F22: 0.045685388 | G22: 305.8054564 | H22: 8.02 | I22: 16.83 | J22: 27.19458941 | K22: 21.38228445 | L22: 25.11739914 | M22: 0.0083
A23: 2039-01-01 | B23: 22 | C23: 0.054950388 | D23: 0.050045388 | E23: 0.066940388 | F23: 0.046666388 | G23: 308.8453065 | H23: 8.02 | I23: 16.85 | J23: 27.54978049 | K23: 21.5283 | L23: 25.44545985 | M23: 0.0085
A24: 2040-01-01 | B24: 23 | C24: 0.055931388 | D24: 0.050917388 | E24: 0.068684388 | F24: 0.047756388 | G24: 311.8242891 | H24: 8.03 | I24: 16.87 | J24: 27.90961076 | K24: 21.67531266 | L24: 25.77780539 | M24: 0.0086
A25: 2041-01-01 | B25: 24 | C25: 0.056694388 | D25: 0.051789388 | E25: 0.070428388 | F25: 0.048846388 | G25: 314.9591909 | H25: 8.03 | I25: 16.89 | J25: 28.27414081 | K25: 21.82332924 | L25: 26.11449172 | M25: 0.0088
A26: 2042-01-01 | B26: 25 | C26: 0.057566388 | D26: 0.052770388 | E26: 0.072172388 | F26: 0.049936388 | G26: 318.0348117 | H26: 8.03 | I26: 16.91 | J26: 28.64343201 | K26: 21.97235659 | L26: 26.45557555 | M26: 0.009
A27: 2043-01-01 | B27: 26 | C27: 0.058438388 | D27: 0.053642388 | E27: 0.074025388 | F27: 0.051026388 | G27: 321.2679645 | H27: 8.03 | I27: 16.93 | J27: 29.01754657 | K27: 22.12240163 | L27: 26.8011143 | M27: 0.0091
A28: 2044-01-01 | B28: 27 | C28: 0.059419388 | D28: 0.054623388 | E28: 0.075878388 | F28: 0.052225388 | G28: 324.4434763 | H28: 8.03 | I28: 16.95 | J28: 29.39654746 | K28: 22.27347129 | L28: 27.15116617 | M28: 0.0093
A29: 2045-01-01 | B29: 28 | C29: 0.060291388 | D29: 0.055604388 | E29: 0.077840388 | F29: 0.053315388 | G29: 327.7781874 | H29: 12.91627192 | I29: 16.97 | J29: 29.78049853 | K29: 22.42557258 | L29: 27.5057901 | M29: 0.0095
A30: 2046-01-01

Sheet LEI High Avoided Costs Com
A1: EffectiveDate | B1: Year | C1: Electric+DripeSeasonalWinterOnPeak | D1: Electric+DripeSeasonalWinterOffPeak | E1: Electric+DripeSeasonalSummerOnPeak | F1: Electric+DripeSeasonalSummerOffPeak | G1: Capacity+T&D | H1: NaturalGasCommercial | I1: HeatingOilCommercial | J1: KeroseneCommercial | K1: PropaneCommercial | L1: WoodGreenwood | M1: WaterCommercial | O1: DefaultDiscountRate | P1: DefaultGenerationMarkUp
A2: 2018-01-01 | B2: 1 | C2: 0.04270026969 | D2: 0.03878672761 | E2: 0.0361275963 | F2: 0.0301325963 | G2: 223.12 | H2: 5.31 | I2: 11.41 | J2: 17.09465794 | K2: 15.35299265 | L2: 18.74789006 | M2: 0.0057 | O2: 6.5 | P2: 8
A3: 2019-01-01 | B3: 2 | C3: 0.04206869486 | D3: 0.03868969486 | E3: 0.03759969486 | F3: 0.03105969486 | G3: 231.156 | H3: 6.12 | I3: 11.55 | J3: 17.52292362 | K3: 15.54444281 | L3: 19.13736609 | M3: 0.0058
A4: 2020-01-01 | B4: 3 | C4: 0.04301685139 | D4: 0.03920185139 | E4: 0.03963785139 | F4: 0.03124485139 | G4: 211.4041969 | H4: 6.27 | I4: 11.81 | J4: 17.87610613 | K4: 15.67303871 | L4: 19.50764796 | M4: 0.006
A5: 2021-01-01 | B5: 4 | C5: 0.04371128802 | D5: 0.04011428802 | E5: 0.04098628802 | F5: 0.03292028802 | G5: 196.010213 | H5: 6.49 | I5: 12.16 | J5: 18.27257065 | K5: 15.88701863 | L5: 19.88534842 | M5: 0.0061
A6: 2022-01-01 | B6: 5 | C6: 0.04584030787 | D6: 0.04169830787 | E6: 0.04278830787 | F6: 0.03406830787 | G6: 198.1374363 | H6: 6.64 | I6: 12.5 | J6: 18.69515463 | K6: 16.05611481 | L6: 20.27834196 | M6: 0.0062
A7: 2023-01-01 | B7: 6 | C7: 0.046339388 | D7: 0.042415388 | E7: 0.045140388 | F7: 0.035548388 | G7: 209.9270579 | H7: 6.79 | I7: 12.94 | J7: 19.00330836 | K7: 16.18185724 | L7: 20.63557675 | M7: 0.0063
A8: 2024-01-01 | B8: 7 | C8: 0.046012388 | D8: 0.042415388 | E8: 0.043505388 | F8: 0.035875388 | G8: 230.0578709 | H8: 6.69 | I8: 13.24 | J8: 19.2894975 | K8: 16.33509382 | L8: 20.99267256 | M8: 0.0064
A9: 2025-01-01 | B9: 8 | C9: 0.047102388 | D9: 0.042742388 | E9: 0.046230388 | F9: 0.036420388 | G9: 253.4664633 | H9: 6.88 | I9: 13.63 | J9: 19.62756137 | K9: 16.51914941 | L9: 21.32264096 | M9: 0.0065
A10: 2026-01-01 | B10: 9 | C10: 0.046775388 | D10: 0.042415388 | E10: 0.047756388 | F10: 0.036747388 | G10: 273.5648243 | H10: 6.82 | I10: 14.01 | J10: 19.88568723 | K10: 16.67174594 | L10: 21.56852053 | M10: 0.0067
A11: 2027-01-01 | B11: 10 | C11: 0.046884388 | D11: 0.042742388 | E11: 0.045031388 | F11: 0.037074388 | G11: 275.0169432 | H11: 6.76 | I11: 14.47 | J11: 20.22327106 | K11: 16.82467511 | L11: 21.91746072 | M11: 0.0068
A12: 2028-01-01 | B12: 11 | C12: 0.046012388 | D12: 0.042415388 | E12: 0.046012388 | F12: 0.037183388 | G12: 278.45081 | H12: 6.74 | I12: 14.91 | J12: 20.42229315 | K12: 16.94838385 | L12: 22.13712304 | M12: 0.0069
A13: 2029-01-01 | B13: 12 | C13: 0.047211388 | D13: 0.043941388 | E13: 0.046775388 | F13: 0.038055388 | G13: 280.9629895 | H13: 6.89 | I13: 15.32 | J13: 20.68804454 | K13: 17.0854621 | L13: 22.41865969 | M13: 0.007
A14: 2030-01-01 | B14: 13 | C14: 0.046993388 | D14: 0.041761388 | E14: 0.052443388 | F14: 0.037510388 | G14: 283.5003191 | H14: 6.89 | I14: 15.34 | J14: 20.92507526 | K14: 17.21925414 | L14: 22.64068554 | M14: 0.0072
A15: 2031-01-01 | B15: 14 | C15: 0.048628388 | D15: 0.043396388 | E15: 0.054841388 | F15: 0.039145388 | G15: 286.1959366 | H15: 6.9 | I15: 15.36 | J15: 21.21063969 | K15: 17.35753244 | L15: 22.93639766 | M15: 0.0073
A16: 2032-01-01 | B16: 15 | C16: 0.049391388 | D16: 0.044159388 | E16: 0.056258388 | F16: 0.040017388 | G16: 288.821258 | H16: 6.9 | I16: 15.38 | J16: 21.50010121 | K16: 17.49675501 | L16: 23.2359721 | M16: 0.0075
A17: 2033-01-01 | B17: 16 | C17: 0.050154388 | D17: 0.044922388 | E17: 0.057675388 | F17: 0.040998388 | G17: 291.6048358 | H17: 6.91 | I17: 15.4 | J17: 21.79351302 | K17: 17.63692831 | L17: 23.53945931 | M17: 0.0076
A18: 2034-01-01 | B18: 17 | C18: 0.050917388 | D18: 0.045794388 | E18: 0.059092388 | F18: 0.041870388 | G18: 294.3180945 | H18: 6.91 | I18: 15.42 | J18: 22.09092901 | K18: 17.77805882 | L18: 23.8469104 | M18: 0.0077
A19: 2035-01-01 | B19: 18 | C19: 0.051680388 | D19: 0.046557388 | E19: 0.060618388 | F19: 0.042742388 | G19: 297.1770265 | H19: 6.92 | I19: 15.43 | J19: 22.39240385 | K19: 17.92015309 | L19: 24.15837713 | M19: 0.0079
A20: 2036-01-01 | B20: 19 | C20: 0.052552388 | D20: 0.047429388 | E20: 0.062144388 | F20: 0.043723388 | G20: 299.9720712 | H20: 6.93 | I20: 15.45 | J20: 22.6979929 | K20: 18.0632177 | L20: 24.47391196 | M20: 0.008
A21: 2037-01-01 | B21: 20 | C21: 0.053315388 | D21: 0.048301388 | E21: 0.063670388 | F21: 0.044704388 | G21: 302.9199649 | H21: 6.92 | I21: 15.47 | J21: 23.00775233 | K21: 18.20725926 | L21: 24.79356802 | M21: 0.0082
A22: 2038-01-01 | B22: 21 | C22: 0.054187388 | D22: 0.049173388 | E22: 0.065305388 | F22: 0.045685388 | G22: 305.8054564 | H22: 6.93 | I22: 15.49 | J22: 23.32173905 | K22: 18.35228445 | L22: 25.11739914 | M22: 0.0083
A23: 2039-01-01 | B23: 22 | C23: 0.054950388 | D23: 0.050045388 | E23: 0.066940388 | F23: 0.046666388 | G23: 308.8453065 | H23: 6.94 | I23: 15.51 | J23: 23.64001074 | K23: 18.4983 | L23: 25.44545985 | M23: 0.0085
A24: 2040-01-01 | B24: 23 | C24: 0.055931388 | D24: 0.050917388 | E24: 0.068684388 | F24: 0.047756388 | G24: 311.8242891 | H24: 6.95 | I24: 15.52 | J24: 23.96262588 | K24: 18.64531266 | L24: 25.77780539 | M24: 0.0086
A25: 2041-01-01 | B25: 24 | C25: 0.056694388 | D25: 0.051789388 | E25: 0.070428388 | F25: 0.048846388 | G25: 314.9591909 | H25: 6.94 | I25: 15.54 | J25: 24.28964376 | K25: 18.79332924 | L25: 26.11449172 | M25: 0.0088
A26: 2042-01-01 | B26: 25 | C26: 0.057566388 | D26: 0.052770388 | E26: 0.072172388 | F26: 0.049936388 | G26: 318.0348117 | H26: 6.95 | I26: 15.56 | J26: 24.62112444 | K26: 18.94235659 | L26: 26.45557555 | M26: 0.009
A27: 2043-01-01 | B27: 26 | C27: 0.058438388 | D27: 0.053642388 | E27: 0.074025388 | F27: 0.051026388 | G27: 321.2679645 | H27: 6.95 | I27: 15.58 | J27: 24.95712884 | K27: 19.09240163 | L27: 26.8011143 | M27: 0.0091
A28: 2044-01-01 | B28: 27 | C28: 0.059419388 | D28: 0.054623388 | E28: 0.075878388 | F28: 0.052225388 | G28: 324.4434763 | H28: 6.95 | I28: 15.6 | J28: 25.29771869 | K28: 19.24347129 | L28: 27.15116617 | M28: 0.0093
A29: 2045-01-01 | B29: 28 | C29: 0.060291388 | D29: 0.055604388 | E29: 0.077840388 | F29: 0.053315388 | G29: 327.7781874 | H29: 11.62039591 | I29: 15.62 | J29: 25.64295657 | K29: 19.39557258 | L29: 27.5057901 | M29: 0.0095
A30: 2046-01-01

Sheet AESC 2016 Avoided Costs Com
A1: EffectiveDate | B1: Year | C1: Electric+DripeSeasonalWinterOnPeak | D1: Electric+DripeSeasonalWinterOffPeak | E1: Electric+DripeSeasonalSummerOnPeak | F1: Electric+DripeSeasonalSummerOffPeak | G1: Capacity+T&D | H1: NaturalGasCommercial | I1: HeatingOilCommercial | J1: KeroseneCommercial | K1: PropaneCommercial | L1: WoodGreenwood | M1: WaterCommercial | O1: DefaultDiscountRate | P1: DefaultGenerationMarkUp
A2: 2018-01-01 | B2: 1 | C2: 0.0496 | D2: 0.0422 | E2: 0.0321 | F2: 0.0246 | G2: 232.7 | H2: 5.18 | I2: 12.14 | J2: 12.01 | K2: 9.89 | L2: 18.31 | M2: 0.0054 | O2: 2.43 | P2: 8
A3: 2019-01-01 | B3: 2 | C3: 0.0518 | D3: 0.0453 | E3: 0.0379 | F3: 0.0303 | G3: 183.51 | H3: 6.64 | I3: 13.84 | J3: 13.71 | K3: 11.5 | L3: 19.89 | M3: 0.0054
A4: 2020-01-01 | B4: 3 | C4: 0.0566 | D4: 0.0483 | E4: 0.0468 | F4: 0.0346 | G4: 209.18 | H4: 7.07 | I4: 15.5 | J4: 15.34 | K4: 13.02 | L4: 21.74 | M4: 0.0055
A5: 2021-01-01 | B5: 4 | C5: 0.0614 | D5: 0.053 | E5: 0.0497 | F5: 0.038 | G5: 223.13 | H5: 7.62 | I5: 17.13 | J5: 16.97 | K5: 14.54 | L5: 23.58 | M5: 0.0056
A6: 2022-01-01 | B6: 5 | C6: 0.0624 | D6: 0.0537 | E6: 0.0513 | F6: 0.0394 | G6: 223.8 | H6: 7.56 | I6: 18.76 | J6: 18.61 | K6: 15.97 | L6: 23.99 | M6: 0.0057
A7: 2023-01-01 | B7: 6 | C7: 0.0664 | D7: 0.0572 | E7: 0.0554 | F7: 0.0436 | G7: 222.08 | H7: 7.9 | I7: 20.28 | J7: 20.09 | K7: 17.28 | L7: 25.53 | M7: 0.0058
A8: 2024-01-01 | B8: 7 | C8: 0.0693 | D8: 0.0597 | E8: 0.0581 | F8: 0.0472 | G8: 228.244 | H8: 8.22 | I8: 20.56 | J8: 20.35 | K8: 17.4 | L8: 26.64 | M8: 0.006
A9: 2025-01-01 | B9: 8 | C9: 0.0716 | D9: 0.0622 | E9: 0.0628 | F9: 0.0494 | G9: 240.846 | H9: 8.34 | I9: 21.04 | J9: 20.83 | K9: 17.71 | L9: 27.52 | M9: 0.0061
A10: 2026-01-01 | B10: 9 | C10: 0.0715 | D10: 0.062 | E10: 0.0644 | F10: 0.0502 | G10: 253.673 | H10: 8.17 | I10: 21.63 | J10: 21.42 | K10: 18.2 | L10: 27.49 | M10: 0.0062
A11: 2027-01-01 | B11: 10 | C11: 0.0726 | D11: 0.0629 | E11: 0.065 | F11: 0.051 | G11: 266.151 | H11: 8.1 | I11: 22.13 | J11: 21.92 | K11: 18.49 | L11: 27.9 | M11: 0.0063
A12: 2028-01-01 | B12: 11 | C12: 0.074 | D12: 0.0642 | E12: 0.0692 | F12: 0.0533 | G12: 278.954 | H12: 8.14 | I12: 22.46 | J12: 22.24 | K12: 18.73 | L12: 28.45 | M12: 0.0064
A13: 2029-01-01 | B13: 12 | C13: 0.0757 | D13: 0.066 | E13: 0.0721 | F13: 0.0551 | G13: 292.494 | H13: 8.19 | I13: 22.93 | J13: 22.7 | K13: 19.04 | L13: 29.09 | M13: 0.0065
A14: 2030-01-01 | B14: 13 | C14: 0.0774 | D14: 0.0684 | E14: 0.0741 | F14: 0.0566 | G14: 310.073 | H14: 8.2 | I14: 23.27 | J14: 23.04 | K14: 19.27 | L14: 29.74 | M14: 0.0067
A15: 2031-01-01 | B15: 14 | C15: 0.0778 | D15: 0.0695 | E15: 0.0801 | F15: 0.0582 | G15: 319.289 | H15: 8.15 | I15: 24.04 | J15: 23.81 | K15: 20.01 | L15: 29.9 | M15: 0.0068
A16: 2032-01-01 | B16: 15 | C16: 0.0791 | D16: 0.0711 | E16: 0.0836 | F16: 0.06 | G16: 321.643 | H16: 8.21 | I16: 24.64 | J16: 24.4 | K16: 20.46 | L16: 30.41 | M16: 0.0069
A17: 2033-01-01 | B17: 16 | C17: 0.0805 | D17: 0.0727 | E17: 0.0873 | F17: 0.0618 | G17: 324.047 | H17: 8.27 | I17: 25.26 | J17: 25.01 | K17: 20.92 | L17: 30.93 | M17: 0.007
A18: 2034-01-01 | B18: 17 | C18: 0.0818 | D18: 0.0744 | E18: 0.0912 | F18: 0.0636 | G18: 326.476 | H18: 8.33 | I18: 25.9 | J18: 25.64 | K18: 21.38 | L18: 31.45 | M18: 0.0072
A19: 2035-01-01 | B19: 18 | C19: 0.0832 | D19: 0.0761 | E19: 0.0953 | F19: 0.0656 | G19: 328.956 | H19: 8.4 | I19: 26.55 | J19: 26.28 | K19: 21.86 | L19: 31.98 | M19: 0.0073
A20: 2036-01-01 | B20: 19 | C20: 0.0846 | D20: 0.0778 | E20: 0.0995 | F20: 0.0675 | G20: 331.473 | H20: 8.46 | I20: 27.21 | J20: 26.93 | K20: 22.35 | L20: 32.53 | M20: 0.0075
A21: 2037-01-01 | B21: 20 | C21: 0.0861 | D21: 0.0796 | E21: 0.104 | F21: 0.0696 | G21: 334.041 | H21: 8.52 | I21: 27.9 | J21: 27.61 | K21: 22.84 | L21: 33.08 | M21: 0.0076
A22: 2038-01-01 | B22: 21 | C22: 0.0875 | D22: 0.0815 | E22: 0.1086 | F22: 0.0717 | G22: 336.646 | H22: 8.59 | I22: 28.6 | J22: 28.29 | K22: 23.34 | L22: 33.64 | M22: 0.0077
A23: 2039-01-01 | B23: 22 | C23: 0.089 | D23: 0.0833 | E23: 0.1134 | F23: 0.0738 | G23: 339.289 | H23: 8.65 | I23: 29.31 | J23: 29 | K23: 23.86 | L23: 34.21 | M23: 0.0079
A24: 2040-01-01 | B24: 23 | C24: 0.0905 | D24: 0.0853 | E24: 0.1185 | F24: 0.0761 | G24: 341.976 | H24: 8.72 | I24: 30.05 | J24: 29.72 | K24: 24.38 | L24: 34.79 | M24: 0.008
A25: 2041-01-01 | B25: 24 | C25: 0.0921 | D25: 0.0872 | E25: 0.1237 | F25: 0.0784 | G25: 344.708 | H25: 8.78 | I25: 30.8 | J25: 30.47 | K25: 24.92 | L25: 35.38 | M25: 0.0082
A26: 2042-01-01 | B26: 25 | C26: 0.0936 | D26: 0.0892 | E26: 0.1292 | F26: 0.0807 | G26: 347.485 | H26: 8.85 | I26: 31.58 | J26: 31.23 | K26: 25.46 | L26: 35.98 | M26: 0.0083
A27: 2043-01-01 | B27: 26 | C27: 0.0952 | D27: 0.0913 | E27: 0.135 | F27: 0.0832 | G27: 350.309 | H27: 8.91 | I27: 32.37 | J27: 32.01 | K27: 26.01 | L27: 36.59 | M27: 0.0085
A28: 2044-01-01 | B28: 27 | C28: 0.0968 | D28: 0.0934 | E28: 0.141 | F28: 0.0857 | G28: 353.18 | H28: 8.98 | I28: 33.18 | J28: 32.8 | K28: 26.58 | L28: 37.21 | M28: 0.0086
A29: 2045-01-01 | B29: 28 | C29: 0.0985 | D29: 0.0955 | E29: 0.1473 | F29: 0.0883 | G29: 356.099 | H29: 9.05 | I29: 34.01 | J29: 33.62 | K29: 27.16 | L29: 37.85 | M29: 0.0088
A30: 2046-01-01 | B30: 29 | C30: 0.1002 | D30: 0.0977 | E30: 0.1538 | F30: 0.091 | G30: 359.067 | H30: 9.12 | I30: 34.87 | J30: 34.46 | K30: 27.75 | L30: 38.49 | M30: 0.009

Sheet AESC 2016 Avoided Costs Res
A1: EffectiveDate | B1: Year | C1: Electric+DripeSeasonalWinterOnPeak | D1: Electric+DripeSeasonalWinterOffPeak | E1: Electric+DripeSeasonalSummerOnPeak | F1: Electric+DripeSeasonalSummerOffPeak | G1: Capacity+T&D | H1: NaturalGasCommercial | I1: HeatingOilCommercial | J1: KeroseneCommercial | K1: PropaneCommercial | L1: WoodGreenwood | M1: WaterCommercial | O1: DefaultDiscountRate | P1: DefaultGenerationMarkUp
A2: 2018-01-01 | B2: 1 | C2: 0.0496 | D2: 0.0422 | E2: 0.0321 | F2: 0.0246 | G2: 232.7 | H2: 6.02 | I2: 13.07 | J2: 14.26 | K2: 12.92 | L2: 18.31 | M2: 0.0054 | O2: 2.43 | P2: 8
A3: 2019-01-01 | B3: 2 | C3: 0.0518 | D3: 0.0453 | E3: 0.0379 | F3: 0.0303 | G3: 183.51 | H3: 7.88 | I3: 14.86 | J3: 16.21 | K3: 14.53 | L3: 19.89 | M3: 0.0054
A4: 2020-01-01 | B4: 3 | C4: 0.0566 | D4: 0.0483 | E4: 0.0468 | F4: 0.0346 | G4: 209.18 | H4: 8.31 | I4: 16.62 | J4: 18.13 | K4: 16.05 | L4: 21.74 | M4: 0.0055
A5: 2021-01-01 | B5: 4 | C5: 0.0614 | D5: 0.053 | E5: 0.0497 | F5: 0.038 | G5: 223.13 | H5: 8.86 | I5: 18.33 | J5: 20 | K5: 17.57 | L5: 23.58 | M5: 0.0056
A6: 2022-01-01 | B6: 5 | C6: 0.0624 | D6: 0.0537 | E6: 0.0513 | F6: 0.0394 | G6: 223.8 | H6: 8.81 | I6: 20.03 | J6: 21.85 | K6: 19 | L6: 23.99 | M6: 0.0057
A7: 2023-01-01 | B7: 6 | C7: 0.0664 | D7: 0.0572 | E7: 0.0554 | F7: 0.0436 | G7: 222.08 | H7: 9.17 | I7: 21.66 | J7: 23.62 | K7: 20.31 | L7: 25.53 | M7: 0.0058
A8: 2024-01-01 | B8: 7 | C8: 0.0693 | D8: 0.0597 | E8: 0.0581 | F8: 0.0472 | G8: 228.244 | H8: 9.49 | I8: 21.98 | J8: 23.98 | K8: 20.43 | L8: 26.64 | M8: 0.006
A9: 2025-01-01 | B9: 8 | C9: 0.0716 | D9: 0.0622 | E9: 0.0628 | F9: 0.0494 | G9: 240.846 | H9: 9.61 | I9: 22.46 | J9: 24.5 | K9: 20.74 | L9: 27.52 | M9: 0.0061
A10: 2026-01-01 | B10: 9 | C10: 0.0715 | D10: 0.062 | E10: 0.0644 | F10: 0.0502 | G10: 253.673 | H10: 9.45 | I10: 23.06 | J10: 25.16 | K10: 21.23 | L10: 27.49 | M10: 0.0062
A11: 2027-01-01 | B11: 10 | C11: 0.0726 | D11: 0.0629 | E11: 0.065 | F11: 0.051 | G11: 266.151 | H11: 9.38 | I11: 23.57 | J11: 25.72 | K11: 21.52 | L11: 27.9 | M11: 0.0063
A12: 2028-01-01 | B12: 11 | C12: 0.074 | D12: 0.0642 | E12: 0.0692 | F12: 0.0533 | G12: 278.954 | H12: 9.42 | I12: 23.93 | J12: 26.1 | K12: 21.76 | L12: 28.45 | M12: 0.0064
A13: 2029-01-01 | B13: 12 | C13: 0.0757 | D13: 0.066 | E13: 0.0721 | F13: 0.0551 | G13: 292.494 | H13: 9.48 | I13: 24.41 | J13: 26.63 | K13: 22.07 | L13: 29.09 | M13: 0.0065
A14: 2030-01-01 | B14: 13 | C14: 0.0774 | D14: 0.0684 | E14: 0.0741 | F14: 0.0566 | G14: 310.073 | H14: 9.48 | I14: 24.75 | J14: 27 | K14: 22.3 | L14: 29.74 | M14: 0.0067
A15: 2031-01-01 | B15: 14 | C15: 0.0778 | D15: 0.0695 | E15: 0.0801 | F15: 0.0582 | G15: 319.289 | H15: 9.43 | I15: 25.57 | J15: 27.89 | K15: 23.04 | L15: 29.9 | M15: 0.0068
A16: 2032-01-01 | B16: 15 | C16: 0.0791 | D16: 0.0711 | E16: 0.0836 | F16: 0.06 | G16: 321.643 | H16: 9.5 | I16: 26.2 | J16: 28.58 | K16: 23.49 | L16: 30.41 | M16: 0.0069
A17: 2033-01-01 | B17: 16 | C17: 0.0805 | D17: 0.0727 | E17: 0.0873 | F17: 0.0618 | G17: 324.047 | H17: 9.56 | I17: 26.85 | J17: 29.29 | K17: 23.95 | L17: 30.93 | M17: 0.007
A18: 2034-01-01 | B18: 17 | C18: 0.0818 | D18: 0.0744 | E18: 0.0912 | F18: 0.0636 | G18: 326.476 | H18: 9.63 | I18: 27.51 | J18: 30.01 | K18: 24.41 | L18: 31.45 | M18: 0.0072
A19: 2035-01-01 | B19: 18 | C19: 0.0832 | D19: 0.0761 | E19: 0.0953 | F19: 0.0656 | G19: 328.956 | H19: 9.69 | I19: 28.19 | J19: 30.75 | K19: 24.89 | L19: 31.98 | M19: 0.0073
A20: 2036-01-01 | B20: 19 | C20: 0.0846 | D20: 0.0778 | E20: 0.0995 | F20: 0.0675 | G20: 331.473 | H20: 9.76 | I20: 28.89 | J20: 31.51 | K20: 25.38 | L20: 32.53 | M20: 0.0075
A21: 2037-01-01 | B21: 20 | C21: 0.0861 | D21: 0.0796 | E21: 0.104 | F21: 0.0696 | G21: 334.041 | H21: 9.82 | I21: 29.6 | J21: 32.29 | K21: 25.87 | L21: 33.08 | M21: 0.0076
A22: 2038-01-01 | B22: 21 | C22: 0.0875 | D22: 0.0815 | E22: 0.1086 | F22: 0.0717 | G22: 336.646 | H22: 9.89 | I22: 30.33 | J22: 33.09 | K22: 26.37 | L22: 33.64 | M22: 0.0077
A23: 2039-01-01 | B23: 22 | C23: 0.089 | D23: 0.0833 | E23: 0.1134 | F23: 0.0738 | G23: 339.289 | H23: 9.96 | I23: 31.08 | J23: 33.91 | K23: 26.89 | L23: 34.21 | M23: 0.0079
A24: 2040-01-01 | B24: 23 | C24: 0.0905 | D24: 0.0853 | E24: 0.1185 | F24: 0.0761 | G24: 341.976 | H24: 10.03 | I24: 31.85 | J24: 34.74 | K24: 27.41 | L24: 34.79 | M24: 0.008
A25: 2041-01-01 | B25: 24 | C25: 0.0921 | D25: 0.0872 | E25: 0.1237 | F25: 0.0784 | G25: 344.708 | H25: 10.1 | I25: 32.64 | J25: 35.6 | K25: 27.95 | L25: 35.38 | M25: 0.0082
A26: 2042-01-01 | B26: 25 | C26: 0.0936 | D26: 0.0892 | E26: 0.1292 | F26: 0.0807 | G26: 347.485 | H26: 10.16 | I26: 33.44 | J26: 36.48 | K26: 28.49 | L26: 35.98 | M26: 0.0083
A27: 2043-01-01 | B27: 26 | C27: 0.0952 | D27: 0.0913 | E27: 0.135 | F27: 0.0832 | G27: 350.309 | H27: 10.23 | I27: 34.27 | J27: 37.38 | K27: 29.04 | L27: 36.59 | M27: 0.0085
A28: 2044-01-01 | B28: 27 | C28: 0.0968 | D28: 0.0934 | E28: 0.141 | F28: 0.0857 | G28: 353.18 | H28: 10.3 | I28: 35.11 | J28: 38.3 | K28: 29.61 | L28: 37.21 | M28: 0.0086
A29: 2045-01-01 | B29: 28 | C29: 0.0985 | D29: 0.0955 | E29: 0.1473 | F29: 0.0883 | G29: 356.099 | H29: 10.37 | I29: 35.98 | J29: 39.25 | K29: 30.19 | L29: 37.85 | M29: 0.0088
A30: 2046-01-01 | B30: 29 | C30: 0.1002 | D30: 0.0977 | E30: 0.1538 | F30: 0.091 | G30: 359.067 | H30: 10.44 | I30: 36.87 | J30: 40.22 | K30: 30.78 | L30: 38.49 | M30: 0.009
